fUSD/lending_fUSD_20250622
["ID","MTS","AMOUNT","RATE_DAILY","PERIOD"]
[366916565,1750570243823,-151.0,0.00019178,2]
[366916566,1750570243833,-490.0,0.00019178,2]
[366916567,1750570243843,-152.954574,0.00019178,2]
[366916568,1750570243853,-490.0,0.00019178,2]
[366916569,1750570243863,-151.0,0.00019178,2]
[366916570,1750570243874,-490.0,0.00019178,2]
[366916571,1750570243884,-151.0,0.00019178,2]
[366916572,1750570243894,-500.0,0.00019178,2]
[366916573,1750570243904,-553.22,0.00019178,2]
[366916574,1750570243914,-490.0,0.00019178,2]
[366916575,1750570243923,-151.0,0.00019178,2]
[366916576,1750570243931,-490.0,0.00019178,2]
[366916577,1750570243939,-490.0,0.00019178,2]
[366916578,1750570243948,-490.0,0.00019178,2]
[366916579,1750570243957,-615.80507041,0.00019178,2]
[366916580,1750570243966,-490.0,0.00019178,2]
[366916581,1750570243974,-490.0,0.00019178,2]
[366916582,1750570243984,-490.0,0.00019178,2]
[366916583,1750570243994,-151.0,0.00019178,2]
[366916584,1750570244004,-151.0,0.00019178,2]
[366916585,1750570244014,-270.678626,0.00019178,2]
[366916586,1750570244024,-490.0,0.00019178,2]
[366916587,1750570244034,-153.263632,0.00019178,2]
[366916588,1750570244044,-153.707429,0.00019178,2]
[366916589,1750570244054,-494.12402606,0.00019178,2]
[366916590,1750570244064,-490.0,0.00019178,2]
[366916591,1750570244074,-490.0,0.00019178,2]
[366916592,1750570244084,-253.06757346,0.00019178,2]
[366916593,1750570244094,-490.0,0.00019178,2]
[366916594,1750570244103,-490.0,0.00019178,2]
[366916595,1750570244114,-490.0,0.00019178,2]
[366916596,1750570244123,-490.0,0.00019178,2]
[366916597,1750570244134,-338.00187733,0.00019178,2]
[366916598,1750570244143,-490.0,0.00019178,2]
[366916599,1750570244153,-490.0,0.00019178,2]
[366916600,1750570244163,-490.0,0.00019178,2]
[366916601,1750570244174,-490.0,0.00019178,2]
[366916602,1750570244183,-490.0,0.00019178,2]
[366916603,1750570244193,-490.0,0.00019178,2]
[366916604,1750570244203,-309.52017674,0.00019178,2]
[366916605,1750570244213,-493.48500215,0.00019178,2]
[366916606,1750570244222,-490.0,0.00019178,2]
[366916607,1750570244231,-490.0,0.00019178,2]
[366916608,1750570244240,-490.0,0.00019178,2]
[366916609,1750570244248,-1195.73,0.00019178,2]
[366916610,1750570244257,-252.94443135,0.00019178,2]
[366916611,1750570244266,-490.0,0.00019178,2]
[366916612,1750570244274,-490.0,0.00019178,2]
[366916613,1750570244283,-500.0,0.00019178,2]
[366916614,1750570244292,-500.0,0.00019178,2]
[366916615,1750570244300,-490.0,0.00019178,2]
[366916616,1750570244309,-490.0,0.00019178,2]
[366916617,1750570244318,-968.44651931,0.00019178,2]
[366916621,1750570246122,-94.84348069,0.00019178,2]
[366916623,1750570246131,-173.04101931,0.00019178,2]
[366916625,1750570246187,-180.77829649,0.00019178,2]
[366916626,1750570246197,-490.0,0.00019178,2]
[366916627,1750570246207,-490.0,0.00019178,2]
[366916628,1750570246216,-490.0,0.00019178,2]
[366916629,1750570246226,-490.0,0.00019178,2]
[366916630,1750570246236,-490.0,0.00019178,2]
[366916631,1750570246246,-490.0,0.00019178,2]
[366916632,1750570246255,-570.21,0.00019178,2]
[366916633,1750570246265,-491.56975829,0.00019178,2]
[366916634,1750570246276,-151.0,0.00019178,2]
[366916635,1750570246286,-490.0,0.00019178,2]
[366916636,1750570246295,-294.63927334,0.00019178,2]
[366916637,1750570246305,-490.0,0.00019178,2]
[366916638,1750570246314,-2281.32,0.00019178,2]
[366916639,1750570246324,-905.35,0.00019178,2]
[366916640,1750570246333,-490.0,0.00019178,2]
[366916641,1750570246343,-490.0,0.00019178,2]
[366916642,1750570246352,-490.0,0.00019178,2]
[366916643,1750570246362,-29.76467922,0.00019178,2]
[366916644,1750570271496,202.0,0.00017141,2]
[366916645,1750570332250,202.0,0.00017141,2]
[366916646,1750570346901,187.0,0.00016712,2]
[366916648,1750570963028,170.06,0.00013699,2]
[366916650,1750571080103,171.3,0.00013995,2]
[366916656,1750571171724,202.0,0.00016906,2]
[366916657,1750571210785,1471.56179539,0.00017434,2]
[366916666,1750571320354,172.5245842,0.00017436,2]
[366916668,1750571322274,201.0,0.00016906,2]
[366916763,1750571432103,-274.19,0.00017472,2]
[366916764,1750571432114,-300.0,0.00017535,2]
[366916765,1750571432124,-1200.0,0.00017535,2]
[366916766,1750571432134,-300.0,0.00017535,2]
[366916767,1750571432145,-6856.92315225,0.00017536,2]
[366916768,1750571432158,-5251.98023937,0.00017536,2]
[366916769,1750571432175,-11791.09660838,0.00017536,2]
[366916771,1750571432184,-519.22,0.00017601,2]
[366916772,1750571432194,-1112.97,0.0001762,2]
[366916773,1750571432204,-150.0,0.00017655,2]
[366916774,1750571432214,-172.52458418,0.00017747,2]
[366916775,1750571432228,-1080.9,0.00017948,2]
[366916776,1750571432238,-1080.9,0.00017952,2]
[366916777,1750571432248,-1080.9,0.00017957,2]
[366916778,1750571432258,-1080.9,0.00017962,2]
[366916779,1750571432268,-1080.9,0.00017967,2]
[366916780,1750571432278,-1080.9,0.00017971,2]
[366916781,1750571432288,-1080.9,0.00017976,2]
[366916782,1750571432298,-320.15,0.00017981,2]
[366916783,1750571432308,-1080.9,0.00017981,2]
[366916784,1750571432317,-1080.9,0.00017985,2]
[366916785,1750571432327,-1080.9,0.0001799,2]
[366916786,1750571432337,-702.13530347,0.00017994,2]
[366916788,1750571432346,-1080.9,0.00017995,2]
[366916790,1750571432356,-1080.9,0.00018,2]
[366916792,1750571432366,-1080.9,0.00018004,2]
[366916794,1750571432375,-1080.9,0.00018009,2]
[366916796,1750571432385,-1080.9,0.00018014,2]
[366916798,1750571432394,-1080.9,0.00018018,2]
[366916800,1750571432404,-1080.9,0.00018023,2]
[366916802,1750571432413,-1080.9,0.00018028,2]
[366916804,1750571432423,-1080.9,0.00018033,2]
[366916806,1750571432432,-1080.9,0.00018037,2]
[366916808,1750571432443,-151.0,0.00018038,2]
[366916810,1750571432452,-151.0,0.00018038,2]
[366916812,1750571432462,-172.52458418,0.00018057,2]
[366916814,1750571432472,-151.0,0.00018075,2]
[366916816,1750571432481,-1957.856,0.00018075,2]
[366916819,1750571432493,-207.4,0.00018075,2]
[366916821,1750571432503,-1019.77413523,0.0001813,2]
[366916823,1750571432514,-1000.0,0.00018134,2]
[366916825,1750571432524,-13617.46,0.00018156,2]
[366916826,1750571432534,-1475.64,0.00018157,2]
[366916827,1750571432544,-2839.1,0.00018165,2]
[366916828,1750571432554,-200.0,0.00018165,2]
[366916829,1750571432563,-2751.0,0.00018183,2]
[366916831,1750571432574,-240.4914404,0.00018191,2]
[366916832,1750571432587,-2562.4685596,0.00018191,2]
[366916834,1750571432596,-168.0,0.0001824,2]
[366916835,1750571432606,-164.13,0.00018299,2]
[366916836,1750571432616,-1165.59,0.00018378,2]
[366916838,1750571432625,-202.0,0.00018392,4]
[366916840,1750571432636,-1165.59,0.0001863,2]
[366916842,1750571432645,-168.0,0.00018726,2]
[366916844,1750571432654,-168.0,0.00018783,2]
[366916846,1750571432664,-218.52,0.00018878,2]
[366916848,1750571432673,-194.0,0.00018971,2]
[366916850,1750571432683,-31118.21643025,0.0001899,2]
[366916954,1750571437899,-3693.65185498,0.0001899,2]
[366916955,1750571437911,-408.72291472,0.0001899,2]
[366916956,1750571437955,-10365.91774109,0.0001899,2]
[366916957,1750571438021,-1496.29297775,0.0001899,2]
[366916958,1750571438032,-669.25097,0.0001899,2]
[366916959,1750571438044,-2000.0,0.00019,2]
[366916960,1750571438053,-4424.82823375,0.00019038,2]
[366916961,1750571438064,-4424.82823369,0.00019073,2]
[366916962,1750571438074,-283.23695411,0.00019078,2]
[366916963,1750571438085,-3227.13665048,0.00019078,2]
[366916964,1750571438095,-185.5029585,0.00019078,2]
[366916965,1750571438106,-240.85798338,0.00019078,2]
[366916966,1750571438116,-166.48401672,0.00019078,2]
[366916967,1750571438127,-16538.0446,0.00019078,2]
[366916968,1750571438137,-1000.0,0.00019078,2]
[366916969,1750571438152,-4424.82823369,0.00019108,2]
[366916970,1750571438161,-3227.1366504,0.00019108,2]
[366916971,1750571438170,-150.0,0.00019122,2]
[366916972,1750571438181,-150.0,0.00019123,2]
[366916973,1750571438193,-150.0,0.00019124,2]
[366916974,1750571438203,-168.0,0.00019137,2]
[366916975,1750571438213,-3227.1366504,0.00019139,2]
[366916976,1750571438225,-420.0,0.00019142,2]
[366916977,1750571438236,-420.0,0.00019142,2]
[366916979,1750571438246,-4424.82823369,0.00019143,2]
[366916981,1750571438256,-300.0,0.00019147,2]
[366916983,1750571438266,-150.0,0.00019148,2]
[366916985,1750571438276,-150.0,0.00019153,2]
[366916987,1750571438286,-218.5,0.0001916,2]
[366916989,1750571438298,-150.0,0.00019161,2]
[366916992,1750571438308,-150.0,0.00019162,2]
[366916994,1750571438318,-150.0,0.00019165,2]
[366916996,1750571438328,-150.0,0.00019166,2]
[366916997,1750571438337,-2000.0,0.00019168,2]
[366916999,1750571438346,-3227.1366504,0.00019169,2]
[366917001,1750571438356,-150.0,0.00019172,2]
[366917003,1750571438365,-500.81203407,0.00019173,2]
[366917005,1750571438375,-430.24369602,0.00019173,2]
[366917006,1750571438384,-515.79141634,0.00019173,2]
[366917007,1750571438393,-500.0,0.00019173,2]
[366917008,1750571438403,-150.0,0.00019175,2]
[366917009,1750571438413,-171.66,0.00019177,2]
[366917010,1750571438423,-4424.82823369,0.00019178,2]
[366917011,1750571438432,-500.0,0.00019178,2]
[366917012,1750571438442,-500.0,0.00019178,2]
[366917013,1750571438452,-500.0,0.00019178,2]
[366917014,1750571438462,-500.0,0.00019178,2]
[366917015,1750571438472,-500.0,0.00019178,2]
[366917016,1750571438481,-500.0,0.00019178,2]
[366917017,1750571438491,-500.0,0.00019178,2]
[366917018,1750571438500,-500.0,0.00019178,2]
[366917019,1750571438510,-500.0,0.00019178,2]
[366917020,1750571438521,-500.0,0.00019178,2]
[366917021,1750571438532,-500.0,0.00019178,2]
[366917022,1750571438542,-500.0,0.00019178,2]
[366917023,1750571438552,-500.0,0.00019178,2]
[366917024,1750571438563,-500.0,0.00019178,2]
[366917025,1750571438572,-500.0,0.00019178,2]
[366917026,1750571438581,-500.0,0.00019178,2]
[366917027,1750571438591,-500.0,0.00019178,2]
[366917028,1750571438600,-500.0,0.00019178,2]
[366917029,1750571438610,-354.29392068,0.00019178,2]
[366917030,1750571438620,-500.0,0.00019178,2]
[366917031,1750571438630,-500.0,0.00019178,2]
[366917032,1750571438639,-500.0,0.00019178,2]
[366917033,1750571438649,-500.0,0.00019178,2]
[366917034,1750571438659,-198.00574448,0.00019178,2]
[366917035,1750571438670,-500.0,0.00019178,2]
[366917036,1750571438679,-1055.24,0.00019178,2]
[366917037,1750571438689,-659.6,0.00019178,2]
[366917038,1750571438698,-490.0,0.00019178,2]
[366917039,1750571438709,-490.0,0.00019178,2]
[366917040,1750571438719,-490.0,0.00019178,2]
[366917041,1750571438728,-490.0,0.00019178,2]
[366917042,1750571438739,-490.0,0.00019178,2]
[366917043,1750571438748,-228.59134019,0.00019178,2]
[366917044,1750571438758,-850.36,0.00019178,2]
[366917045,1750571438768,-850.36,0.00019178,2]
[366917046,1750571438779,-850.36,0.00019178,2]
[366917047,1750571438788,-850.36,0.00019178,2]
[366917048,1750571438798,-850.36,0.00019178,2]
[366917049,1750571438807,-850.36,0.00019178,2]
[366917050,1750571438817,-850.36,0.00019178,2]
[366917051,1750571438826,-490.0,0.00019178,2]
[366917052,1750571438836,-490.0,0.00019178,2]
[366917053,1750571438846,-315.73324361,0.00019178,2]
[366917054,1750571438855,-490.0,0.00019178,2]
[366917055,1750571438865,-490.0,0.00019178,2]
[366917056,1750571438874,-490.0,0.00019178,2]
[366917057,1750571438884,-490.0,0.00019178,2]
[366917058,1750571438894,-502.269256,0.00019178,2]
[366917059,1750571438904,-490.0,0.00019178,2]
[366917060,1750571438914,-490.0,0.00019178,2]
[366917061,1750571438924,-341.19986483,0.00019178,2]
[366917062,1750571438934,-494.24292561,0.00019178,2]
[366917063,1750571438944,-698.45,0.00019178,2]
[366917064,1750571438954,-490.0,0.00019178,2]
[366917065,1750571438965,-499.94702484,0.00019178,2]
[366917066,1750571438975,-490.0,0.00019178,2]
[366917067,1750571438985,-490.0,0.00019178,2]
[366917068,1750571438995,-490.0,0.00019178,2]
[366917069,1750571439005,-490.0,0.00019178,2]
[366917070,1750571439015,-490.0,0.00019178,2]
[366917071,1750571439024,-309.56557472,0.00019178,2]
[366917072,1750571439034,-490.0,0.00019178,2]
[366917073,1750571439044,-490.0,0.00019178,2]
[366917074,1750571439055,-1097.56,0.00019178,2]
[366917075,1750571439065,-490.0,0.00019178,2]
[366917076,1750571439075,-1155.81,0.00019178,2]
[366917077,1750571439085,-490.0,0.00019178,2]
[366917078,1750571439094,-490.0,0.00019178,2]
[366917079,1750571439104,-490.0,0.00019178,2]
[366917080,1750571439113,-490.0,0.00019178,2]
[366917081,1750571439124,-490.0,0.00019178,2]
[366917082,1750571439134,-490.0,0.00019178,2]
[366917083,1750571439144,-490.0,0.00019178,2]
[366917084,1750571439155,-490.0,0.00019178,2]
[366917085,1750571439165,-490.0,0.00019178,2]
[366917086,1750571439175,-759.11,0.00019178,2]
[366917087,1750571439184,-490.0,0.00019178,2]
[366917088,1750571439195,-490.0,0.00019178,2]
[366917089,1750571439205,-490.0,0.00019178,2]
[366917090,1750571439215,-490.0,0.00019178,2]
[366917091,1750571439227,-490.0,0.00019178,2]
[366917092,1750571439236,-490.0,0.00019178,2]
[366917093,1750571439246,-553.79218834,0.00019178,2]
[366917094,1750571439256,-490.0,0.00019178,2]
[366917095,1750571439267,-353.82035193,0.00019178,2]
[366917096,1750571439276,-490.0,0.00019178,2]
[366917097,1750571439286,-490.0,0.00019178,2]
[366917098,1750571439297,-490.0,0.00019178,2]
[366917099,1750571439307,-1180.23913229,0.00019178,2]
[366917100,1750571439317,-1180.23913229,0.00019178,2]
[366917101,1750571439328,-1180.23913229,0.00019178,2]
[366917102,1750571439338,-1180.23913229,0.00019178,2]
[366917103,1750571439348,-465.89885496,0.00019178,2]
[366917104,1750571439358,-490.0,0.00019178,2]
[366917105,1750571439368,-490.0,0.00019178,2]
[366917106,1750571439379,-593.47738946,0.00019178,2]
[366917107,1750571439388,-500.0,0.00019178,2]
[366917108,1750571439398,-490.0,0.00019178,2]
[366917109,1750571439408,-1000.0,0.00019178,2]
[366917110,1750571439418,-490.0,0.00019178,2]
[366917111,1750571439428,-490.0,0.00019178,2]
[366917112,1750571439438,-220.71319354,0.00019178,2]
[366917113,1750571439447,-490.0,0.00019178,2]
[366917114,1750571439457,-490.89727234,0.00019178,2]
[366917115,1750571439467,-490.0,0.00019178,2]
[366917116,1750571439476,-492.91433233,0.00019178,2]
[366917117,1750571439486,-490.0,0.00019178,2]
[366917118,1750571439496,-468.55194253,0.00019178,2]
[366917119,1750571439506,-490.0,0.00019178,2]
[366917120,1750571439516,-490.0,0.00019178,2]
[366917121,1750571439526,-490.0,0.00019178,2]
[366917122,1750571439537,-490.0,0.00019178,2]
[366917123,1750571439548,-490.0,0.00019178,2]
[366917124,1750571439558,-490.0,0.00019178,2]
[366917125,1750571439568,-490.0,0.00019178,2]
[366917126,1750571439578,-494.24586673,0.00019178,2]
[366917127,1750571439588,-490.0,0.00019178,2]
[366917128,1750571439597,-490.0,0.00019178,2]
[366917129,1750571439607,-490.0,0.00019178,2]
[366917130,1750571439617,-490.0,0.00019178,2]
[366917131,1750571439626,-490.0,0.00019178,2]
[366917132,1750571439636,-490.0,0.00019178,2]
[366917133,1750571439646,-490.0,0.00019178,2]
[366917134,1750571439656,-490.0,0.00019178,2]
[366917135,1750571439666,-490.0,0.00019178,2]
[366917136,1750571439676,-490.0,0.00019178,2]
[366917137,1750571439686,-490.0,0.00019178,2]
[366917138,1750571439696,-490.0,0.00019178,2]
[366917139,1750571439706,-491.05939628,0.00019178,2]
[366917140,1750571439716,-741.75,0.00019178,2]
[366917141,1750571439726,-490.0,0.00019178,2]
[366917142,1750571439736,-490.0,0.00019178,2]
[366917143,1750571439747,-490.0,0.00019178,2]
[366917144,1750571439757,-490.0,0.00019178,2]
[366917145,1750571439767,-490.90731496,0.00019178,2]
[366917146,1750571439777,-315.13859834,0.00019178,2]
[366917147,1750571439787,-490.0,0.00019178,2]
[366917148,1750571439797,-490.0,0.00019178,2]
[366917149,1750571439807,-490.0,0.00019178,2]
[366917150,1750571439817,-151.0,0.00019178,2]
[366917151,1750571439827,-490.0,0.00019178,2]
[366917152,1750571439837,-490.0,0.00019178,2]
[366917154,1750571439847,-200.536682,0.00019178,2]
[366917155,1750571439857,-490.0,0.00019178,2]
[366917156,1750571439867,-490.0,0.00019178,2]
[366917158,1750571439877,-490.0,0.00019178,2]
[366917159,1750571439886,-494.39383844,0.00019178,2]
[366917160,1750571439895,-490.0,0.00019178,2]
[366917161,1750571439905,-491.52465304,0.00019178,2]
[366917162,1750571439915,-490.0,0.00019178,2]
[366917163,1750571439924,-490.0,0.00019178,2]
[366917164,1750571439934,-766.67,0.00019178,2]
[366917165,1750571439943,-493.52477859,0.00019178,2]
[366917166,1750571439952,-490.0,0.00019178,2]
[366917167,1750571439962,-490.0,0.00019178,2]
[366917168,1750571439972,-490.0,0.00019178,2]
[366917169,1750571439982,-152.729053,0.00019178,2]
[366917170,1750571439992,-152.557438,0.00019178,2]
[366917171,1750571440001,-516.11981407,0.00019178,2]
[366917172,1750571440012,-490.0,0.00019178,2]
[366917173,1750571440023,-490.0,0.00019178,2]
[366917174,1750571440033,-490.0,0.00019178,2]
[366917175,1750571440043,-490.0,0.00019178,2]
[366917176,1750571440053,-490.0,0.00019178,2]
[366917177,1750571440063,-490.0,0.00019178,2]
[366917178,1750571440073,-490.0,0.00019178,2]
[366917179,1750571440083,-153.498088,0.00019178,2]
[366917180,1750571440093,-490.0,0.00019178,2]
[366917181,1750571440103,-490.0,0.00019178,2]
[366917182,1750571440113,-500.0,0.00019178,2]
[366917183,1750571440122,-490.0,0.00019178,2]
[366917184,1750571440133,-490.0,0.00019178,2]
[366917185,1750571440145,-491.16975258,0.00019178,2]
[366917186,1750571440155,-494.90000905,0.00019178,2]
[366917187,1750571440165,-490.0,0.00019178,2]
[366917188,1750571440175,-530.17,0.00019178,2]
[366917189,1750571440184,-490.0,0.00019178,2]
[366917190,1750571440195,-1833.36,0.00019178,2]
[366917191,1750571440205,-494.33875441,0.00019178,2]
[366917192,1750571440215,-968.88,0.00019178,2]
[366917193,1750571440230,-490.0,0.00019178,2]
[366917194,1750571440240,-151.0,0.00019178,2]
[366917195,1750571440250,-490.0,0.00019178,2]
[366917196,1750571440260,-490.0,0.00019178,2]
[366917197,1750571440270,-535.27,0.00019178,2]
[366917198,1750571440280,-490.0,0.00019178,2]
[366917199,1750571440290,-492.95516698,0.00019178,2]
[366917200,1750571440301,-528.79,0.00019178,2]
[366917201,1750571440310,-490.0,0.00019178,2]
[366917202,1750571440320,-490.0,0.00019178,2]
[366917203,1750571440330,-490.0,0.00019178,2]
[366917204,1750571440339,-1389.93,0.00019178,2]
[366917205,1750571440349,-490.0,0.00019178,2]
[366917206,1750571440359,-490.0,0.00019178,2]
[366917207,1750571440368,-490.0,0.00019178,2]
[366917208,1750571440378,-490.0,0.00019178,2]
[366917209,1750571440388,-490.0,0.00019178,2]
[366917210,1750571440397,-490.0,0.00019178,2]
[366917211,1750571440407,-724.85,0.00019178,2]
[366917212,1750571440416,-490.0,0.00019178,2]
[366917213,1750571440425,-490.0,0.00019178,2]
[366917214,1750571440435,-490.0,0.00019178,2]
[366917215,1750571440444,-490.0,0.00019178,2]
[366917216,1750571440455,-490.0,0.00019178,2]
[366917217,1750571440465,-490.0,0.00019178,2]
[366917218,1750571440475,-490.0,0.00019178,2]
[366917219,1750571440485,-490.0,0.00019178,2]
[366917220,1750571440495,-490.0,0.00019178,2]
[366917221,1750571440505,-490.0,0.00019178,2]
[366917222,1750571440515,-490.0,0.00019178,2]
[366917223,1750571440525,-490.0,0.00019178,2]
[366917224,1750571440534,-700.8,0.00019178,2]
[366917225,1750571440545,-490.0,0.00019178,2]
[366917226,1750571440555,-490.0,0.00019178,2]
[366917227,1750571440565,-490.0,0.00019178,2]
[366917228,1750571440574,-490.0,0.00019178,2]
[366917229,1750571440584,-490.0,0.00019178,2]
[366917230,1750571440594,-490.0,0.00019178,2]
[366917231,1750571440603,-490.0,0.00019178,2]
[366917232,1750571440613,-496.41964217,0.00019178,2]
[366917233,1750571440623,-490.0,0.00019178,2]
[366917234,1750571440632,-490.0,0.00019178,2]
[366917235,1750571440642,-1108.15,0.00019178,2]
[366917236,1750571440652,-490.0,0.00019178,2]
[366917237,1750571440662,-490.0,0.00019178,2]
[366917238,1750571440672,-490.0,0.00019178,2]
[366917239,1750571440682,-498.2432003,0.00019178,2]
[366917240,1750571440692,-511.26,0.00019178,2]
[366917241,1750571440702,-490.0,0.00019178,2]
[366917242,1750571440712,-490.0,0.00019178,2]
[366917243,1750571440721,-1032.1,0.00019178,2]
[366917244,1750571440731,-210.08895985,0.00019178,2]
[366917245,1750571440741,-989.78,0.00019178,2]
[366917246,1750571440751,-493.79,0.00019178,2]
[366917247,1750571440762,-151.0,0.00019178,2]
[366917248,1750571440772,-151.0,0.00019178,2]
[366917249,1750571440782,-490.0,0.00019178,2]
[366917250,1750571440792,-490.0,0.00019178,2]
[366917251,1750571440802,-151.0,0.00019178,2]
[366917252,1750571440812,-493.4574466,0.00019178,2]
[366917253,1750571440821,-490.0,0.00019178,2]
[366917254,1750571440831,-490.0,0.00019178,2]
[366917255,1750571440841,-151.0,0.00019178,2]
[366917256,1750571440850,-492.07587756,0.00019178,2]
[366917257,1750571441154,-151.0,0.00019178,2]
[366917258,1750571441164,-356.50307178,0.00019178,2]
[366917259,1750571441175,-1303.83,0.00019178,2]
[366917260,1750571441185,-490.0,0.00019178,2]
[366917261,1750571441194,-151.0,0.00019178,2]
[366917262,1750571441204,-490.0,0.00019178,2]
[366917263,1750571441214,-490.0,0.00019178,2]
[366917264,1750571441227,-490.0,0.00019178,2]
[366917265,1750571441237,-490.0,0.00019178,2]
[366917266,1750571441247,-151.0,0.00019178,2]
[366917267,1750571441257,-490.0,0.00019178,2]
[366917268,1750571441267,-622.67,0.00019178,2]
[366917269,1750571441276,-491.4023,0.00019178,2]
[366917270,1750571441286,-633.50165066,0.00019178,2]
[366917271,1750571441297,-490.0,0.00019178,2]
[366917272,1750571441306,-490.0,0.00019178,2]
[366917273,1750571441316,-490.0,0.00019178,2]
[366917274,1750571441325,-839.56,0.00019178,2]
[366917275,1750571441335,-490.0,0.00019178,2]
[366917276,1750571441344,-490.0,0.00019178,2]
[366917277,1750571441353,-490.0,0.00019178,2]
[366917278,1750571441363,-490.0,0.00019178,2]
[366917279,1750571441373,-490.0,0.00019178,2]
[366917280,1750571441383,-490.0,0.00019178,2]
[366917281,1750571441392,-497.37843805,0.00019178,2]
[366917282,1750571441402,-490.0,0.00019178,2]
[366917283,1750571441412,-595.98099445,0.00019178,2]
[366917284,1750571441423,-490.0,0.00019178,2]
[366917285,1750571441432,-490.0,0.00019178,2]
[366917286,1750571441442,-490.0,0.00019178,2]
[366917287,1750571441451,-490.0,0.00019178,2]
[366917288,1750571441461,-490.0,0.00019178,2]
[366917289,1750571441471,-490.0,0.00019178,2]
[366917290,1750571441480,-490.0,0.00019178,2]
[366917291,1750571441490,-151.0,0.00019178,2]
[366917292,1750571441501,-250.0,0.00019178,2]
[366917293,1750571441510,-490.0,0.00019178,2]
[366917294,1750571441520,-490.0,0.00019178,2]
[366917295,1750571441530,-490.0,0.00019178,2]
[366917296,1750571441540,-490.0,0.00019178,2]
[366917297,1750571441550,-490.0,0.00019178,2]
[366917298,1750571441560,-490.0,0.00019178,2]
[366917299,1750571441570,-490.0,0.00019178,2]
[366917300,1750571441580,-490.0,0.00019178,2]
[366917301,1750571441589,-490.0,0.00019178,2]
[366917302,1750571441599,-490.0,0.00019178,2]
[366917303,1750571441607,-518.73,0.00019178,2]
[366917304,1750571441616,-615.62,0.00019178,2]
[366917305,1750571441625,-490.0,0.00019178,2]
[366917306,1750571441634,-490.0,0.00019178,2]
[366917307,1750571441643,-490.0,0.00019178,2]
[366917308,1750571441651,-490.0,0.00019178,2]
[366917309,1750571441659,-490.0,0.00019178,2]
[366917310,1750571441668,-490.0,0.00019178,2]
[366917311,1750571441678,-490.0,0.00019178,2]
[366917312,1750571441687,-490.0,0.00019178,2]
[366917313,1750571441697,-451.99,0.00019178,2]
[366917314,1750571441706,-490.0,0.00019178,2]
[366917315,1750571441716,-490.0,0.00019178,2]
[366917316,1750571441726,-490.0,0.00019178,2]
[366917317,1750571441736,-162.898941,0.00019178,2]
[366917318,1750571441745,-1051.21,0.00019178,2]
[366917319,1750571441755,-490.0,0.00019178,2]
[366917320,1750571441765,-490.0,0.00019178,2]
[366917321,1750571441774,-490.0,0.00019178,2]
[366917322,1750571441784,-490.0,0.00019178,2]
[366917323,1750571441794,-490.0,0.00019178,2]
[366917324,1750571441803,-490.0,0.00019178,2]
[366917325,1750571441813,-1654.85,0.00019178,2]
[366917326,1750571441822,-490.0,0.00019178,2]
[366917327,1750571441833,-490.0,0.00019178,2]
[366917328,1750571441842,-490.0,0.00019178,2]